Cogmind - Beta 15 @@@ ROGUE MODE // 2025.10.04 @ 19:33:36 Player: Grey Result: Destroyed by H-61 Shepherd with Heavy Assault Cannon Performance ------------- Evolutions (2) 1000 Regions Visited (4) 800 Robots Destroyed (18) 90 Value Destroyed (345) 345 Prototype IDs (0) 0 Alien Tech Used (0) 0 Bonus (0) 0 TOTAL SCORE: 2235 Bonus ------- None Cogmind --------- Core Integrity 0/550 Matter 106/300 Energy 100/100 System Corruption 10% Temperature Cool (11) Movement Core (350) Ox6 Location -8/Materials Parts ------- > --- POWER (1) -------- (None) > --- PROPULSION (2) --- (None) > --- UTILITY (4) ------ Large Storage Unit Transmission Jammer > --- WEAPON (4) ------- (None) > --- INVENTORY (15) --- Light Nuclear Core Improved Treads Improved Treads Improved Heat Sink Machine Analyzer Seismic Detector Reaction Control System Hardlight Generator Component Analysis Suite Peak State ------------ > --- POWER ------------ Deuterium Engine > --- PROPULSION ------- Medium Treads Medium Treads > --- UTILITY ---------- Large Storage Unit Transmission Jammer Hardened Light Armor Plating Hardlight Generator > --- WEAPON ----------- Rocket Launcher > --- INVENTORY -------- Light Nuclear Core Improved Treads Improved Treads Medium Treads Improved Heat Sink Machine Analyzer Seismic Detector Reaction Control System Hardlight Generator Component Analysis Suite [Rating: 25] Favorites ----------- Power Ion Engine Engine Ion Engine Propulsion Medium Treads Treads Medium Treads Wheel Compact Wheel Flight Unit Flight Unit Utility Sensor Array Device Sensor Array Storage Large Storage Unit Protection Hardened Light Armor Plating Weapon Rocket Launcher Ballistic Gun Assault Rifle Ballistic Cannon Light Cannon Launcher Rocket Launcher Build | -11 -10 -10 -9 -8 ------- Run | Yrd Mat Min Mat Mat Slots Evolved 4 | . . . 2 2 Power . | . . . . . Propulsion . | . . . . . Utility 2 | . . . 1 1 Weapon 2 | . . . 1 1 Parts Attached 24 | 5 1 . 6 12 Power 5 | 1 . . 2 2 Engine 5 | 1 . . 2 2 Core . | . . . . . Reactor . | . . . . . Propulsion 8 | 2 . . 2 4 Treads 4 | . . . . 4 Leg . | . . . . . Wheel 2 | 2 . . . . Hover . | . . . . . Flight 2 | . . . 2 . Utility 6 | 1 . . 1 4 Device 3 | . . . 1 2 Storage 2 | 1 . . . 1 Processor . | . . . . . Hackware . | . . . . . Protection 1 | . . . . 1 Artifact . | . . . . . Weapon 5 | 1 1 . 1 2 Energy Gun . | . . . . . Energy Cannon . | . . . . . Ballistic Gun 2 | 1 . . . 1 Ballistic Cannon 1 | . 1 . . . Launcher 2 | . . . 1 1 Special Weapon . | . . . . . Impact Weapon . | . . . . . Slashing Weapon . | . . . . . Piercing Weapon . | . . . . . Special Melee Weapon . | . . . . . Unidentified Prototypes . | . . . . . Parts Lost 18 | . . 4 3 11 Power 5 | . . 1 1 3 Propulsion 4 | . . 1 . 3 Utility 4 | . . . 1 3 Weapon 5 | . . 2 1 2 Highest Loss Streak 6 | . . 4 1 6 To Critical Strikes . | . . . . . Average Backups 5 | . 1 3 2 9 Power 1 | . 1 2 1 1 Propulsion 1 | . . . . 3 Utility 2 | . . . 1 4 Weapon . | . . . . . Tool/Special . | . . . . . Unused Backups 9 | . . . . 9 Power 1 | . . . . 1 Propulsion 2 | . . . . 2 Utility 6 | . . . . 6 Weapon . | . . . . . Tool/Special . | . . . . . Average Slot Usage (%) 59 | . 79 70 40 63 Engine 9 | . 14 10 9 7 Treads 7 | . . . . 15 Wheel 6 | . 28 23 . . Flight 3 | . . . 10 . Device 10 | . . . 9 16 Storage 8 | . 14 14 5 8 Protection 3 | . . . . 7 Ballistic Gun 2 | . 14 10 . . Ballistic Cannon 2 | . 8 11 . . Launcher 4 | . . . 5 5 Peak Build Rating 25 | 5 6 6 5 25 Average Rating 11 | 3 5 5 3 20 On Entrance 3 | . 5 6 1 4 Naked Turns . | . . . . . Heaviest Build 44 | 10 13 13 9 44 Greatest Support 56 | 32 32 32 8 56 Greatest Overweight (x) 9 | . . 1 2 9 Average Overweight (x) . | . . . 1 . Largest Inventory Capacity 15 | 8 8 8 8 15 Average Capacity 10 | 6 8 8 6 14 Most Carried 13 | 2 2 4 4 13 Average Carried 5 | . 1 3 2 9 Final Capacity 15 | 8 8 8 5 15 Final Carried 9 | 1 1 4 3 9 Class Distribution -------------------- 100% | Mutant Dominant Class ---------------- Mutant | -10/Materials Mutant | -10/Mines Mutant | -9/Materials Mutant | -8/Materials Resources | -11 -10 -10 -9 -8 ----------- Run | Yrd Mat Min Mat Mat Matter Collected 449 | 218 . 107 22 102 Remotely . | . . . . . Salvage Created 199 | . . 113 41 45 Parts 28 | . . 9 11 8 Haulers Intercepted . | . . . . . Recyclers Shooed . | . . . . . Parts Field Recycled . | . . . . . Retrieved Matter . | . . . . . Parts Self-Destructed . | . . . . . Prevented . | . . . . . Kills | -11 -10 -10 -9 -8 ------- Run | Yrd Mat Min Mat Mat Combat Hostiles Destroyed 14 | . . 5 4 5 Guns 1 | . . 1 . . Cannons 4 | . . 4 . . AOE 9 | . . . 4 5 Classes Destroyed 5 | . . 2 2 1 Builder 3 | . . . 2 1 Watcher 1 | . . . 1 . Swarmer 9 | . . 2 3 4 Grunt 4 | . . 3 1 . Sentry 1 | . . . . 1 Best Kill Streak 6 | . . 3 3 6 Combat Bots Only 5 | . . 3 3 5 Max Kills in Single Turn 3 | . . 1 2 3 Gunslinging . | . . . . . Exploded 3 | . . . 2 3 Melee . | . . . . . Uniques/NPCs Destroyed . | . . . . . Combat | -11 -10 -10 -9 -8 -------- Run | Yrd Mat Min Mat Mat Hostile Shots Fired 202 | . 2 32 52 116 Missed 53 | . . 3 18 32 Hits 149 | . 2 29 34 84 Projectile 149 | . 2 29 34 84 AOE 3 | . . 3 . . Critical Strikes 4 | . . . . 4 Damage Taken 2770 | . 32 484 359 1895 Core 838 | . . 126 156 556 Absorbed by Shields 124 | . . . . 124 Core Remaining (%) 70 | 100 . 49 61 . Volleys Fired 34 | . . 15 10 9 Largest 2 | . . 2 1 1 Hottest 50 | . . 50 30 33 Shots Fired 43 | . . 24 10 9 Gun 9 | . . 9 . . Cannon 15 | . . 15 . . Launcher 19 | . . . 10 9 Special . | . . . . . Kinetic 24 | . . 24 . . Thermal . | . . . . . Explosive 19 | . . . 10 9 Electromagnetic . | . . . . . Robot Hit Streak 7 | . . 7 2 2 Robot Miss Streak 4 | . . 2 3 4 Penetration Max . | . . . . . Secondary Targets . | . . . . . Shots Hit Robots 23 | . . 16 4 3 Core Hits 28 | . . 9 11 8 Critical Kills . | . . . . . Critical Parts Destroyed . | . . . . . Critical Strikes . | . . . . . Melee Attacks . | . . . . . Impact . | . . . . . Slashing . | . . . . . Piercing . | . . . . . Sneak Attacks . | . . . . . Combat Hostiles . | . . . . . Follow-up Attacks . | . . . . . Damage Inflicted 1031 | . . 255 445 331 Guns 48 | . . 48 . . Cannons 204 | . . 204 . . Explosions 776 | . . . 445 331 Melee . | . . . . . Ramming 3 | . . 3 . . Kinetic 252 | . . 252 . . Thermal . | . . . . . Explosive 776 | . . . 445 331 Electromagnetic . | . . . . . Impact . | . . . . . Slashing . | . . . . . Piercing . | . . . . . Highest Corruption 10 | . . . . 10 Average Corruption 10 | . . . . 10 Corruption Purged . | . . . . . Corruption Blocked . | . . . . . Effects 6 | . . . . 6 Message Errors 2 | . . . . 2 Matter Fused 1 | . . . . 1 Heat Flow Errors 1 | . . . . 1 Data Loss (minor) 1 | . . . . 1 Data Loss (major) 1 | . . . . 1 Overload Shots . | . . . . . Overflow Damage 68 | . . . 26 42 Projectiles . | . . . . . Explosions 68 | . . . 26 42 Melee . | . . . . . Knockbacks 1 | . . 1 . . Impact . | . . . . . Kinetic 1 | . . 1 . . Secondary . | . . . . . Self-Inflicted Damage 141 | . . 1 68 72 Shots 4 | . . . 2 2 Rammed 1 | . . 1 . . Targets Rammed 1 | . . 1 . . Kicked . | . . . . . Crushed . | . . . . . Highest Temperature 106 | . . 7 . 106 Average Temperature 18 | . . 3 . 29 Received Heat Transfer 473 | . 18 129 6 320 Siege Activations . | . . . . . Martial Activations . | . . . . . Shielding Activations . | . . . . . Robots Disrupted . | . . . . . Combat Hostiles . | . . . . . Robots Corrupted . | . . . . . Combat Hostiles . | . . . . . Parts Fried . | . . . . . Impact Corruptions . | . . . . . Robots Melted . | . . . . . Combat Hostiles . | . . . . . Parts Melted . | . . . . . Heat Transferred . | . . . . . Parts Sabotaged . | . . . . . Parts Stolen . | . . . . . Parts Stripped . | . . . . . Power Chain Reactions . | . . . . . Alert | -11 -10 -10 -9 -8 ------- Run | Yrd Mat Min Mat Mat Maximum Alert Level . | . . . . . Low Security (%) 100 | 100 100 100 100 100 Level 1 . | . . . . . Level 2 . | . . . . . Level 3 . | . . . . . Level 4 . | . . . . . Level 5 . | . . . . . High Security . | . . . . . Max Security . | . . . . . Peak Influence 152 | . 45 108 109 152 Initial 37 | . . 13 22 37 Average 39 | . 14 39 42 44 Influence Increases 591 | . 45 165 189 192 Destroy 0b10 Robot/C 280 | . . 100 80 100 Destroy 0b10 Robot/NC 20 | . . . 15 5 Destroy Leader 52 | . . 20 12 20 Disable Machine 45 | . . . 30 15 Destroy Structure 104 | . . . 52 52 Lose Combat Pursuer 90 | . 45 45 . . Influence Decreases 591 | . 10 142 158 281 Entered New Map 110 | . . 22 36 52 Time Decay 313 | . 10 80 102 121 Lost Part 168 | . . 40 20 108 Squads Dispatched 1 | . . . . 1 Investigation . | . . . . . Extermination . | . . . . . Reinforcement 1 | . . . . 1 Assault . | . . . . . Garrison . | . . . . . Intercept . | . . . . . Searches Triggered . | . . . . . Construction Impeded . | . . . . . Haulers Reinforced . | . . . . . Active Scanning Responses . | . . . . . Cargo Convoy Interrupts . | . . . . . Stealth | -11 -10 -10 -9 -8 --------- Run | Yrd Mat Min Mat Mat Distress Signals 1 | . 1 . . . Communications Jammed . | . . . . . Distress Signals . | . . . . . Times Spotted 40 | . 4 17 7 12 Peak Tracking Total 10 | . 5 10 3 7 Tactical Retreats 2 | . 1 1 . . Traps | -11 -10 -10 -9 -8 ------- Run | Yrd Mat Min Mat Mat Traps Triggered 1 | . . . . 1 Indirectly . | . . . . . Trap Hack Attempts . | . . . . . Triggered . | . . . . . Disarmed . | . . . . . Reprogrammed . | . . . . . Reused . | . . . . . Traps Extracted . | . . . . . Installed . | . . . . . Triggered . | . . . . . Machines | -11 -10 -10 -9 -8 ---------- Run | Yrd Mat Min Mat Mat Machines Disabled 3 | . . . 2 1 Max in Single Turn 1 | . . . 1 1 Machines Repaired . | . . . . . Machines Dismantled . | . . . . . Machines Sabotaged . | . . . . . Overloaded Fab Kills . | . . . . . Hacking | -11 -10 -10 -9 -8 --------- Run | Yrd Mat Min Mat Mat Machines Accessed 1 | . 1 . . . Terminals 1 | . 1 . . . Fabricators . | . . . . . Repair Stations . | . . . . . Recycling Units . | . . . . . Scanalyzers . | . . . . . Garrison Access . | . . . . . Total Hacks 4 | . 4 . . . Successful 2 | . 2 . . . Failed 2 | . 2 . . . Catastrophic . | . . . . . Database Lockouts . | . . . . . Manual . | . . . . . Terminals 4 | . 4 . . . Fabricators . | . . . . . Repair Stations . | . . . . . Recycling Units . | . . . . . Scanalyzers . | . . . . . Garrison Access . | . . . . . Terminal Hacks 2 | . 2 . . . Locate Traps 1 | . 1 . . . Zone Layout 1 | . 1 . . . Fabricator Hacks . | . . . . . Repair Station Hacks . | . . . . . Recycling Unit Hacks . | . . . . . Scanalyzer . | . . . . . Garrison Access Hacks . | . . . . . Unauthorized Hacks . | . . . . . Terminals . | . . . . . Fabricators . | . . . . . Repair Stations . | . . . . . Recycling Units . | . . . . . Scanalyzers . | . . . . . Garrison Access . | . . . . . Data Cores Recovered . | . . . . . Used . | . . . . . Hacking Detections 1 | . 1 . . . Full Trace Events . | . . . . . Feedback Events . | . . . . . Feedback Blocked . | . . . . . Robot Schematics Acquired . | . . . . . Robots Built . | . . . . . Authchips . | . . . . . Time . | . . . . . Total Robot Build Rating . | . . . . . Part Schematics Acquired . | . . . . . Parts Built . | . . . . . Authchips . | . . . . . Time . | . . . . . Total Part Build Rating . | . . . . . Parts Repaired . | . . . . . Time . | . . . . . Parts Recycled . | . . . . . Recycled Matter . | . . . . . Retrieved Matter . | . . . . . Retrieved Components . | . . . . . Parts Scanalyzed . | . . . . . Part Schematics Acquired . | . . . . . Parts Damaged . | . . . . . Bothacking | -11 -10 -10 -9 -8 ------------ Run | Yrd Mat Min Mat Mat Used RIF Installer . | . . . . . Robots Hacked . | . . . . . Non-combat . | . . . . . Combat . | . . . . . Robot Hacks Applied . | . . . . . Relay Couplers Released . | . . . . . Fabnet Peak Effective % . | . . . . . Robots Rewired . | . . . . . Allies Hacked . | . . . . . Hacks Repelled . | . . . . . Allies | -11 -10 -10 -9 -8 -------- Run | Yrd Mat Min Mat Mat Total Allies . | . . . . . Largest Group . | . . . . . Highest-Rated Group . | . . . . . Highest-Rated Ally . | . . . . . Total Orders . | . . . . . Ally Attacks . | . . . . . Total Damage . | . . . . . Kills . | . . . . . Allies Corrupted . | . . . . . Allies Melted . | . . . . . Intel | -11 -10 -10 -9 -8 ------- Run | Yrd Mat Min Mat Mat Active Infowar (turns) 552 | . . . 270 282 Sensors 548 | . . . 270 278 Jamming 247 | . . . . 247 Robot Analysis Total . | . . . . . Derelict Logs Recovered . | . . . . . Drone Launches . | . . . . . Drone Recoveries . | . . . . . Exploration | -11 -10 -10 -9 -8 ------------- Run | Yrd Mat Min Mat Mat Turns Passed 1031 | 41 68 171 295 456 Spaces Moved 640 | 31 67 122 189 231 Core 113 | 1 . 25 84 3 Treads 206 | . . . . 206 Legs . | . . . . . Wheels 194 | 30 67 97 . . Hover . | . . . . . Flight 127 | . . . 105 22 Fastest Speed 37 | 50 100 100 37 37 Average Speed 126 | 98 100 100 121 156 Slowest Speed 500 | 100 100 100 200 500 Overloaded Moves . | . . . . . Propulsion Burnouts . | . . . . . Robots Hopped . | . . . . . Potential Cave-ins . | . . . . . Cave-ins Triggered 1 | . . . . 1 Exploration Rate (%) 21 | 3 18 38 20 29 Regions Visited 4 Branch Regions 1 Pre-discovered Areas . | . . . . . Known Exits Taken . | . . . . . Unknown Exits Taken 4 | 1 1 1 1 . Scrap Searched . | . . . . . Spaces Dug . | . . . . . Terrain Destroyed 122 | . . . 55 67 Melee . | . . . . . Projectile . | . . . . . AOE 122 | . . . 55 67 Terrain Rammed . | . . . . . Walls Destroyed . | . . . . . Machines Disabled . | . . . . . Actions | -11 -10 -10 -9 -8 --------- Run | Yrd Mat Min Mat Mat Total 819 | 41 68 147 243 320 Wait 88 | . . 6 34 48 Move 636 | 30 66 121 188 231 Hop . | . . . . . Pick Up 33 | 6 1 3 5 18 Fast Attach . | . . . . . Attach 23 | 5 1 . 6 11 Detach . | . . . . . Swap 1 | . . . . 1 Drop 3 | . . 1 . 2 Fire 34 | . . 15 10 9 Melee . | . . . . . Ram 1 | . . 1 . . Kick . | . . . . . Crush . | . . . . . Escape Stasis . | . . . . . Rewire . | . . . . . Trap . | . . . . . Miscellaneous . | . . . . . Route ------- -11/Scrapyard -10/Materials -10/Mines -9/Materials -8/Materials (discovered 1 exit: [*Fac]) History --------- Turn | Location | Event 20 | -11/Scrapyard | Discovered new exit (range 16) 42 | -11/Scrapyard | Entered Materials 102 | -10/Materials | Discovered new exit (range 6) 110 | -10/Materials | Entered Mines 214 | -10/Mines | Assembled infested the area 267 | -10/Mines | Discovered new exit (range 15) 272 | -10/Mines | Core integrity fell below 50% 281 | -10/Mines | Entered Materials 281 | -9/Materials | Evolved 2 slots: Utility x1, Weapon x1 285 | -9/Materials | Lost 4 parts (1p1n2w) 302 | -9/Materials | Build established: Mutant 563 | -9/Materials | Discovered new exit (range 13) 576 | -9/Materials | Entered another Materials area 576 | -8/Materials | Evolved 2 slots: Utility x1, Weapon x1 854 | -8/Materials | Crushed by falling debris 854 | -8/Materials | System corruption reached 10% 885 | -8/Materials | Lost 3 parts (1p1n1u) 992 | -8/Materials | Discovered new exit (range 15) 1021 | -8/Materials | Core integrity fell below 50% 1028 | -8/Materials | Core integrity fell below 20% 1032 | -8/Materials | Destroyed by H-61 Shepherd with Heavy Assault Cannon Last Messages --------------- 00997_ System corrupted: Component data lost. 00997_ Hrd. Light Armor Plating destroyed. 01016_ Y-45 Defender destroyed. 01016_ Med. Treads destroyed. 01016_ Hardlight Generator destroyed. 01018_ KHTYN6,QF4EM7DYRDPR=P2FN,X 01018_ Penetrated by Slug. 01018_ Lgt. Assault Rifle destroyed. 01018_ G-47 Trooper destroyed. 01020_ Med. Treads blasted off. 01020_ Knocked back. 01022_ G-47 Trooper destroyed. 01024_ Acquired Imp. Ion Engine. 01024_ Knocked back. 01026_ Acquired 47 matter. 01027_ Knocked back. 01028_ Acquired 2 matter. 01031_ Acquired 47 matter. 01031_ Critical hit (Burn: +37). 01032_ Imp. Ion Engine destroyed. Map ----- +----------------------------------------------------+ | ???????????????????????????????? | | ???????????????????????????????? | | ???????????????????????????????? | | ???????????????????????????????? | | ???????????????????????????????? | | ???????????????????????????????? | | ???????????????????????????????? | | ???????????????????????????????? | | ???????????????????????????????? | | ???????????????????? ?#####????? | | ????????????????????"?# #????? | | ????????????????????? # < #????? | | ????????????????????? # #????? | | ??????????????????????+ #????? | | ??????????????????????# #????? | | ??????????????????????# ###### | | ??????????????????????# # # | | ??????????????????????# # " # | | ??????????????????????# H# T # | | ???????????????????? ?# # " # | | ??????????????????? #%=%+ # | | ?????????????#????? # %!% # | | ??######?????# ???? ?# !# # | | ?##!!!!##????# ??? ?#Y! # =# | | ?#! !#?????? ?? ?#=[ # # | | ?# #??????? ? ?#[Y@###### | | ???# ##??????? ?# *%#????? | | #### ##########+### %#????? | | % #????? | | #????? | | """"" #????? | | #### ""T"" #### ;#????? | | ???# #??# ##????? | | ???# """ #??# #?????? | | ???# """ #??# #?????? | | ???# """ ####+#####?? | | ???# # #?? | | ?? # #?? | | ?? """ """ # #?? | | ? """ """ # #?? | | ? """ """ + #?? | | ? # #?? | | ?? # #?? | | ??? # #?? | | ?????#+####"T"####### #?? | | ??????????#"""??????##########?? | | ??????????###??????????????????? | | ???????????????????????????????? | | ???????????????????????????????? | | ???????????????????????????????? | +----------------------------------------------------+ Best States ------------- Heat Dissipation 31 Energy Generation 14 Energy Capacity 275 Matter Stores 297 Matter Capacity 300 Sight Range 16 Robot Scan Range 14 Terrain Scan Density 10 Jamming Range 12 Armor Coverage 150 Evasion (%) 62 Recoil Reduction 2 Item Schematics ----------------- None Robot Schematics ------------------ None Fabricated ------------ Nothing Repaired ---------- Nothing Alien Tech Used ----------------- None Achievements -------------- None Challenges ------------ None Game ------ Seed SchematicBoreClaws Manual? 0 Play Time 00:14:29 Cumulative 15.8 hours Start 2025.10.04 @ 19:21:33 End 2025.10.04 @ 19:33:36 Sessions 1 Manual Loads 0 Difficulty Rogue Special Mode None Game No. 17 Rogue 17 Adventurer 0 Explorer 0 Win Type - Total 0 Types 0/0/0/0/0/0/0/0/0/0 Lore% 11 Gallery% 16 Achievement% 17 Wizard Run 0 Options --------- Layout 1 ASCII 0 Keyboard 0 Movement Mouse Keybinds 0 Fullscreen 1 Font 32/SmallcapsGlow Map View 50x35 Zoom Use 0% Tactical HUD 1 Map Filters NONE Filters NONE Steam 1 RUN: c530035d-15e2-4eb8-b2e3-7cd61eeda865